bitfinex/quotes_SOLUSD_20241113
["timestamp","ask_amount","ask_price","bid_price","bid_amount"]
[1731526669768,0.6924371,212.87,212.79,45.75576828]
[1731526669964,0.1,212.83,212.75,45.75576828]
[1731526670262,0.1,212.83,212.47,0.93963823]
[1731526670263,0.1,212.75,212.68,45.75576828]
[1731526670459,0.1,212.74,212.66,45.75576828]
[1731526670650,0.1,212.72,212.62,45.75576828]
[1731526670969,0.1,212.64,212.58,45.75576828]
[1731526671142,45.75576828,212.74,212.39,55.34187447]
[1731526671143,0.1,212.59,212.39,31.6955]
[1731526671459,0.1,212.55,212.48,45.75576828]
[1731526671638,45.85576828,212.57,212.46,45.75576828]
[1731526671837,160.5,212.8,212.41,45.75576828]
[1731526671838,0.1,212.6,212.53,45.75576828]
[1731526672036,63.4369,212.81,212.41,45.75576828]
[1731526672037,0.2,212.56,212.48,45.75576828]
[1731526672250,0.1,212.57,212.48,45.75576828]
[1731526672460,45.85576828,212.59,212.48,45.75576828]
[1731526672635,0.1,212.62,212.52,45.75576828]
[1731526672837,0.1,212.62,212.54,45.75576828]
[1731526673062,0.1,212.58,212.52,45.75576828]
[1731526673243,0.1,212.57,212.48,45.75576828]
[1731526673443,0.1,212.56,212.48,45.75576828]
[1731526673655,0.1,212.54,212.46,45.75576828]
[1731526673860,0.1,212.48,212.24,13.2215]
[1731526674171,45.75576828,212.45,212.35,45.75576828]
[1731526674370,0.1,212.43,212.35,45.75576828]
[1731526674742,0.1,212.44,212.36,45.59659177]
[1731526675059,0.1,212.43,212.36,45.59659177]
[1731526675260,0.1,212.41,212.36,45.59659177]
[1731526675557,0.1,212.39,212.34,45.59659177]
[1731526675861,0.1,212.38,212.29,45.59659177]
[1731526676165,45.69659177,212.4,212.3,45.59659177]
[1731526676358,0.1,212.39,212.32,45.59659177]
[1731526676545,0.1,212.41,212.34,45.59659177]
[1731526676747,0.1,212.45,212.36,45.59659177]
[1731526677166,0.1,212.47,212.4,45.59659177]
[1731526677368,0.1,212.41,212.34,45.59659177]
[1731526677674,0.1,212.4,212.31,45.59659177]
[1731526677964,45.69659177,212.52,212.19,64.42118877]
[1731526677965,0.1,212.43,212.35,45.59659177]
[1731526678142,0.1,212.5,212.41,45.59659177]
[1731526678342,0.1,212.53,212.3,45.59659177]
[1731526678343,0.1,212.43,212.37,45.59659177]
[1731526678554,0.1,212.43,212.2,0.12549]
[1731526678555,0.1,212.43,212.35,45.59659177]
[1731526678860,0.1,212.42,212.36,23.776884]
[1731526679060,0.2,212.39,212.33,45.59659177]
[1731526679364,0.1,212.37,212.29,45.59659177]
[1731526679879,0.1,212.38,212.29,45.59659177]
[1731526680253,0.1,212.38,212.31,45.59659177]
[1731526680676,0.1,212.28,212.12,12.0095]
[1731526680970,4.8081,212.4,211.97,12.46940053]
[1731526680971,0.1,212.22,212.13,45.59659177]
[1731526681150,45.59659177,212.23,212.02,12.6298]
[1731526681151,45.79659177,212.23,212.14,45.59659177]
[1731526681349,45.69659177,212.29,212.2,45.59659177]
[1731526681656,45.69659177,212.29,212.02,12.6298]
[1731526681657,0.1,212.38,212.28,45.59659177]
[1731526681865,0.1,212.39,212.32,45.59659177]
[1731526682050,7.28528488,212.41,212.32,45.59659177]
[1731526682248,7.28528488,212.41,212.13,24.33074578]
[1731526682249,7.18528488,212.41,212.4,45.59659177]
[1731526682469,7.18528488,212.41,212.4,69.37347577]
[1731526682680,0.2,212.55,212.4,69.37347577]
[1731526682972,0.1,212.55,212.49,45.59659177]
[1731526683174,12.5646,212.71,212.4,69.37347577]
[1731526683175,0.1,212.62,212.53,45.59659177]
[1731526683376,0.1,212.64,212.58,45.59659177]
[1731526683596,0.1,212.7,212.62,45.59659177]
[1731526683771,0.1,212.74,212.67,45.59659177]
[1731526683953,0.1,212.74,212.69,45.59659177]
[1731526684277,0.1,212.66,212.63,45.59659177]
[1731526684455,0.1,212.7,212.63,45.59659177]
[1731526684661,0.1,212.74,212.65,45.59659177]
[1731526684860,0.1,212.74,212.67,45.59659177]
[1731526685062,0.1,212.74,212.69,45.59659177]
[1731526685269,0.1,212.77,212.71,45.59659177]
[1731526685571,0.1,212.77,212.73,45.59659177]
[1731526685779,0.1,212.72,212.68,45.59659177]
[1731526685959,0.1,212.72,212.66,45.59659177]
[1731526686155,0.2,212.72,212.66,45.59659177]
[1731526686470,0.1,212.72,212.67,61.91487798]
[1731526686668,0.3788146,212.72,212.67,16.4574]
[1731526686971,0.1,212.71,212.67,16.4574]
[1731526687189,0.1,212.69,212.67,16.4574]
[1731526687366,0.2,212.69,212.67,16.4574]
[1731526687569,0.2,212.69,212.56,45.45747798]
[1731526687570,0.1,212.62,212.56,45.45747798]
[1731526687751,0.1,212.62,212.53,23.526]
[1731526687752,45.45747798,212.63,212.54,45.45747798]
[1731526687955,0.1,212.68,212.61,45.45747798]
[1731526688171,0.2788146,212.72,212.66,45.45747798]
[1731526688481,0.2788146,212.72,212.48,23.78718331]
[1731526688482,0.1,212.71,212.49,0.12549]
[1731526688777,0.2788146,212.72,212.49,0.12549]
[1731526688962,0.2788146,212.72,212.52,20.0]
[1731526689152,0.2788146,212.72,212.55,23.776884]
[1731526689354,0.2788146,212.72,212.7,45.45747798]
[1731526689981,0.1,212.7,212.68,45.45747798]
[1731526690167,0.3788146,212.72,212.69,45.45747798]
[1731526690373,0.2788146,212.72,212.71,45.45747798]
[1731526690576,0.1,212.68,212.65,45.45747798]
[1731526690764,0.3788146,212.72,212.67,45.45747798]
[1731526690968,0.1,212.71,212.68,45.45747798]
[1731526691289,0.2788146,212.72,212.7,45.45747798]
[1731526691460,0.4788146,212.72,212.7,45.45747798]
[1731526691959,0.2788146,212.72,212.7,45.45747798]
[1731526692672,0.2788146,212.72,212.71,23.776884]
[1731526693177,0.2788146,212.72,212.7,45.45747798]
[1731526693357,0.2788146,212.72,212.63,45.45747798]
[1731526693559,0.3788146,212.72,212.7,45.45747798]
[1731526693772,0.4788146,212.72,212.7,45.45747798]
[1731526693978,0.1,212.66,212.62,45.45747798]
[1731526694160,0.2,212.7,212.45,0.94037844]
[1731526694357,0.3788146,212.72,212.49,23.09036173]
[1731526694562,0.2788146,212.72,212.71,45.45747798]
[1731526695762,0.3788146,212.72,212.71,45.45747798]
[1731526696181,0.3788146,212.72,212.69,45.45747798]
[1731526696382,0.1,212.7,212.69,50.15907798]
[1731526696583,0.4788146,212.72,212.69,61.91317798]
[1731526696766,0.4788146,212.72,212.71,69.23436198]
[1731526696767,0.2788146,212.72,212.71,69.23436198]
[1731526697079,0.3788146,212.72,212.69,61.91317798]
[1731526697580,0.1,212.7,212.69,16.4557]
[1731526697884,0.2,212.65,212.64,16.4596]
[1731526698078,0.2,212.65,212.6,4.7035]
[1731526698275,0.2,212.59,212.58,11.7598]
[1731526698473,0.1,212.61,212.58,57.21727798]
[1731526698787,0.1,212.59,212.58,11.7598]
[1731526699082,0.1,212.59,212.41,45.45747798]
[1731526699083,0.1,212.5,212.48,45.45747798]
[1731526699263,0.1,212.53,212.48,45.45747798]
[1731526699456,0.1,212.52,212.49,45.45747798]
[1731526699662,0.1,212.52,212.47,45.45747798]
[1731526699867,0.2,212.58,212.51,45.45747798]
[1731526700068,0.2,212.58,212.54,45.45747798]
[1731526700392,0.1,212.59,212.56,50.16197798]
[1731526700687,0.1,212.59,212.56,16.4658]
[1731526700867,0.2,212.57,212.56,11.7613]
[1731526701062,0.1,212.52,212.51,16.4697]
[1731526701364,0.2,212.54,212.51,16.4697]
[1731526701574,0.1,212.54,212.51,16.4697]
[1731526701775,0.2,212.56,212.51,16.4697]
[1731526702077,0.1,212.52,212.51,61.92717798]
[1731526702281,0.2,212.52,212.51,16.4697]
[1731526702488,0.1,212.59,212.31,34.25725984]
[1731526702780,0.1,212.59,212.32,5.89873746]
[1731526702963,0.1,212.55,212.33,0.94071628]
[1731526703175,0.1,212.63,212.34,0.12549]
[1731526703176,0.2,212.52,212.34,0.12549]
[1731526703359,0.1,212.57,212.51,45.45747798]
[1731526703665,0.1,212.63,212.56,23.776884]
[1731526703870,0.1,212.61,212.58,45.45747798]
[1731526704073,0.1,212.6,212.58,45.45747798]
[1731526704271,45.45747798,212.67,212.54,45.45747798]
[1731526704272,0.2,212.55,212.54,45.45747798]
[1731526704473,0.2788146,212.71,212.41,45.45747798]
[1731526704474,0.1,212.64,212.43,0.12549]
[1731526704663,0.1,212.69,212.63,45.45747798]
[1731526704865,0.2788146,212.71,212.52,45.45747798]
[1731526704866,0.3788146,212.71,212.67,45.45747798]
[1731526705375,0.1,212.64,212.63,45.45747798]
[1731526705566,0.2788146,212.71,212.63,45.45747798]
[1731526705567,0.1,212.65,212.63,45.45747798]
[1731526706100,0.1,212.64,212.52,45.45747798]
[1731526706262,0.2788146,212.71,212.52,45.45747798]
[1731526706263,0.3788146,212.71,212.64,23.776884]
[1731526706462,0.3788146,212.71,212.63,90.91495596]
[1731526706463,0.2788146,212.71,212.69,45.45747798]
[1731526707070,0.2788146,212.71,212.7,23.776884]
[1731526707388,0.2788146,212.71,212.69,45.45747798]
[1731526707688,0.1,212.69,212.67,45.45747798]
[1731526707881,0.2788146,212.71,212.61,45.45747798]
[1731526707882,0.1,212.64,212.61,45.45747798]
[1731526708187,45.45747798,212.69,212.59,45.45747798]
[1731526708389,0.2788146,212.71,212.53,1.879693]
[1731526708390,0.22549,212.7,212.53,1.879693]
[1731526708574,0.2788146,212.71,212.52,45.45747798]
[1731526708775,0.2788146,212.71,212.5,0.1]
[1731526708776,0.1,212.67,212.5,18.798324]
[1731526709087,0.2788146,212.71,212.5,18.798324]
[1731526709388,0.12549,212.7,212.46,0.2]
[1731526709584,0.12549,212.7,212.47,0.12549]
[1731526709781,45.45747798,212.68,212.59,45.45747798]
[1731526709983,0.2788146,212.71,212.61,45.45747798]
[1731526710180,0.2788146,212.71,212.67,45.45747798]
[1731526710383,0.2788146,212.71,212.7,28.478284]
[1731526710895,0.2788146,212.71,212.7,4.7014]
[1731526711077,0.2788146,212.71,212.6,45.45747798]
[1731526711283,45.73629258,212.71,212.62,45.45747798]
[1731526711590,0.2788146,212.71,212.64,45.45747798]
[1731526712169,0.2788146,212.71,212.68,45.45747798]
[1731526712376,0.2788146,212.71,212.66,45.45747798]
[1731526712592,0.2788146,212.71,212.7,45.45747798]
[1731526712976,1.46e-05,212.71,212.7,69.23436198]
[1731526714490,4.697,212.9,212.7,69.23436198]
[1731526714491,45.45747798,212.9,212.7,119.51872996]
[1731526714674,14.0002625,212.97,212.83,45.45747798]
[1731526714675,45.45747798,212.92,212.83,45.45747798]
[1731526715072,45.45747798,212.94,212.83,45.45747798]
[1731526715287,45.45747798,212.92,212.81,45.45747798]
[1731526715477,0.1,212.93,212.83,45.45747798]
[1731526715683,45.45747798,212.94,212.83,45.45747798]
[1731526715890,45.45747798,212.88,212.7,39.9622]
[1731526716202,45.45747798,212.79,212.7,16.455]
[1731526716490,45.45747798,212.75,212.65,45.45747798]
[1731526716696,0.1,212.76,212.64,23.513]
[1731526716697,45.45747798,212.73,212.64,23.513]
[1731526716873,45.45747798,212.71,212.64,23.513]
[1731526717073,45.45747798,212.69,212.59,45.45747798]
[1731526717500,45.45747798,212.71,212.61,45.45747798]
[1731526717673,45.55747798,212.73,212.63,45.45747798]
[1731526717873,45.45747798,212.73,212.63,45.45747798]
[1731526718275,45.45747798,212.69,212.58,45.45747798]
[1731526718799,45.55747798,212.69,212.6,45.45747798]
[1731526718974,30.7854,212.81,212.46,4.692]
[1731526718975,45.45747798,212.65,212.54,45.45747798]
[1731526719174,45.45747798,212.63,212.52,45.45747798]
[1731526719387,45.45747798,212.65,212.42,31.7266]
[1731526719696,0.12549,212.74,212.49,0.1]
[1731526719896,0.1,212.73,212.49,0.22549]
[1731526720071,0.12549,212.74,212.49,0.22549]
[1731526720271,30.7854,212.81,212.53,0.1]
[1731526720589,30.7854,212.81,212.61,45.45747798]
[1731526720590,45.45747798,212.71,212.61,45.45747798]
[1731526720791,45.45747798,212.69,212.59,45.45747798]
[1731526720996,45.45747798,212.75,212.65,45.45747798]
[1731526721292,45.45747798,212.73,212.63,45.45747798]
[1731526721684,6.678808,212.8,212.65,45.45747798]
[1731526721685,45.45747798,212.75,212.65,45.45747798]
[1731526722004,30.6854,212.81,212.55,0.1]
[1731526722005,45.45747798,212.79,212.69,45.45747798]
[1731526722178,45.45747798,212.73,212.63,45.45747798]
[1731526722582,0.1,212.77,212.63,45.45747798]
[1731526722583,45.45747798,212.71,212.64,16.4596]
[1731526723096,0.1,212.77,212.64,16.4596]
[1731526723097,45.45747798,212.73,212.64,16.4596]
[1731526723304,45.45747798,212.67,212.58,11.76]
[1731526723597,0.12549,212.76,212.63,45.45747798]
[1731526723598,45.45747798,212.73,212.63,45.45747798]
[1731526723775,45.55747798,212.73,212.63,45.45747798]
[1731526724072,0.1,212.75,212.61,45.45747798]
[1731526724073,45.45747798,212.71,212.61,45.45747798]
[1731526724589,45.45747798,212.71,212.64,16.4596]
[1731526724786,45.45747798,212.77,212.67,45.45747798]
[1731526725003,45.45747798,212.79,212.69,45.45747798]
[1731526725208,45.45747798,212.81,212.71,45.45747798]
[1731526725511,45.45747798,212.81,212.65,23.776884]
[1731526725512,45.45747798,212.83,212.73,45.45747798]
[1731526725722,30.6854,212.92,212.65,23.776884]
[1731526725723,45.45747798,212.91,212.81,45.45747798]
[1731526725912,45.45747798,212.93,212.85,45.45747798]
[1731526726109,0.1,212.92,212.8,45.45747798]
[1731526726316,0.5401625,212.97,212.68,0.1]
[1731526726317,45.45747798,212.91,212.82,45.45747798]
[1731526726501,0.6401625,212.97,212.76,0.2]
[1731526726502,0.5401625,212.97,212.76,0.2]
[1731526726711,45.45747798,212.96,212.88,45.45747798]
[1731526726893,0.5401625,212.97,212.84,45.45747798]
[1731526726894,45.45747798,212.94,212.84,45.45747798]
[1731526727097,45.45747798,212.96,212.88,45.45747798]
[1731526727302,0.5401625,212.97,212.88,45.45747798]
[1731526727518,45.45747798,212.96,212.88,45.45747798]
[1731526727702,45.45747798,212.96,212.86,45.45747798]
[1731526727902,45.45747798,212.93,212.84,45.45747798]
[1731526728122,45.45747798,212.89,212.78,23.776884]
[1731526728309,45.45747798,212.89,212.79,45.45747798]
[1731526728635,0.6401625,212.97,212.85,45.45747798]
[1731526728803,45.45747798,212.91,212.81,45.45747798]
[1731526729010,45.45747798,212.95,212.85,45.45747798]
[1731526729397,45.45747798,212.95,212.8,11.7481]
[1731526729398,45.99764048,212.97,212.87,45.45747798]
[1731526729622,0.5401625,212.97,212.89,45.45747798]
[1731526729802,0.5401625,212.97,212.93,45.45747798]
[1731526730002,0.5401625,212.97,212.95,45.45747798]
[1731526730739,0.5401625,212.97,212.96,73.93006198]
[1731526731718,0.1,213.18,212.96,109.14776198]
[1731526731929,0.1,213.16,213.07,45.45747798]
[1731526732113,0.12549,213.16,213.07,45.45747798]
[1731526732426,45.45747798,213.13,213.03,45.45747798]
[1731526732603,45.45747798,213.13,213.05,45.45747798]
[1731526733508,45.45747798,213.13,213.03,45.45747798]
[1731526734020,45.55747798,213.13,213.03,45.45747798]
[1731526734416,45.45747798,213.13,213.03,45.45747798]
[1731526734622,0.12549,213.12,213.03,45.45747798]
[1731526734803,0.22549,213.1,213.01,45.45747798]
[1731526735006,0.12549,213.06,212.97,45.45747798]
[1731526735206,45.45747798,213.07,212.97,45.45747798]
[1731526735811,45.45747798,213.05,212.97,45.45747798]
[1731526736013,0.12549,213.04,212.95,45.45747798]
[1731526736213,45.45747798,213.01,212.91,45.45747798]
[1731526736426,4.6913,213.16,213.0,45.45747798]
[1731526736730,45.45747798,213.11,213.02,45.45747798]
[1731526736904,45.45747798,213.13,213.04,45.45747798]
[1731526737112,45.45747798,213.16,213.08,45.45747798]
[1731526737425,50.14787798,213.2,213.1,45.45747798]
[1731526737807,45.45747798,213.18,213.1,45.45747798]
[1731526739223,45.45747798,213.18,213.08,45.45747798]
[1731526739427,0.12549,213.18,213.1,45.45747798]
[1731526739830,4.6903,213.21,213.13,45.45747798]
[1731526740022,45.45747798,213.16,213.07,45.45747798]
[1731526740224,45.45747798,213.16,213.03,45.45747798]
[1731526740225,45.45747798,213.14,213.03,45.45747798]
[1731526740530,45.45747798,213.16,213.07,45.45747798]
[1731526740734,50.14847798,213.18,213.09,45.45747798]
[1731526740912,45.45747798,213.2,213.11,45.45747798]
[1731526741112,50.14747798,213.22,213.13,45.45747798]
[1731526741345,45.45747798,213.2,213.11,45.45747798]
[1731526741508,45.45747798,213.16,213.05,45.45747798]
[1731526741713,0.12549,213.09,213.01,45.45747798]
[1731526741911,45.45747798,213.05,212.96,45.45747798]
[1731526742120,0.12549,213.04,212.96,45.45747798]
[1731526742320,45.45747798,213.07,212.98,45.45747798]
[1731526742612,0.12549,212.98,212.88,45.45747798]
[1731526742836,45.45747798,212.95,212.86,45.45747798]
[1731526743038,45.45747798,212.99,212.9,45.45747798]
[1731526743217,0.12549,212.96,212.88,45.45747798]
[1731526743411,45.45747798,212.97,212.75,31.2537]
[1731526743412,45.45747798,212.93,212.75,31.2537]
[1731526743649,45.45747798,212.93,212.85,45.45747798]
[1731526743840,45.45747798,212.93,212.83,45.45747798]
[1731526744038,0.1,212.98,212.67,6.00036452]
[1731526744039,45.45747798,212.96,212.85,45.45747798]
[1731526744346,0.12549,212.91,212.81,45.45747798]
[1731526744635,45.45747798,212.9,212.81,45.45747798]
[1731526744817,0.12549,212.91,212.83,45.45747798]
[1731526745015,160.5,213.03,212.89,45.45747798]
[1731526745340,160.5,213.03,212.74,45.45747798]
[1731526745341,45.45747798,213.01,212.91,45.45747798]
[1731526745942,45.45747798,212.92,212.64,48.23532736]
[1731526746143,45.45747798,212.9,212.81,45.45747798]
[1731526746439,45.45747798,212.94,212.84,45.45747798]
[1731526746644,45.45747798,212.88,212.8,45.45747798]
[1731526746941,0.1,212.93,212.72,5.66742008]
[1731526747118,23.4678,213.06,212.86,45.45747798]
[1731526747119,45.45747798,212.96,212.86,45.45747798]
[1731526747321,45.45747798,212.96,212.69,0.93924514]
[1731526747322,45.45747798,212.92,212.84,45.45747798]
[1731526747537,160.5,212.98,212.86,45.45747798]
[1731526747733,45.45747798,213.03,212.93,45.45747798]
[1731526748038,0.1908237,213.05,213.01,45.45747798]
[1731526748342,0.1908237,213.05,212.88,0.1]
[1731526748343,0.1908237,213.05,212.89,23.776884]
[1731526748540,45.58296798,213.04,212.91,23.776884]
[1731526748716,0.1908237,213.05,212.99,45.45747798]
[1731526749122,0.1908237,213.05,212.97,45.45747798]
[1731526749537,0.12549,213.04,212.9,39.9248]
[1731526749749,0.12549,213.0,212.9,85.38227798]
[1731526749921,0.12549,212.98,212.88,50.15477798]
[1731526750122,45.45747798,213.06,212.96,45.45747798]
[1731526750444,45.45747798,213.08,212.98,45.45747798]
[1731526750639,160.5,213.12,212.94,45.45747798]
[1731526750640,45.58296798,213.04,212.94,45.45747798]
[1731526750850,0.12549,213.01,212.92,45.45747798]
[1731526751024,0.1908237,213.05,212.96,45.45747798]
[1731526751223,4.8846237,213.05,212.98,45.45747798]
[1731526751420,0.12549,213.01,212.89,4.6972]
[1731526751621,0.12549,212.93,212.85,45.45747798]
[1731526751931,0.12549,212.93,212.68,13.4999]
[1731526751932,0.22549,212.91,212.79,45.45747798]
[1731526752137,0.12549,212.87,212.77,45.45747798]
[1731526752443,0.12549,212.84,212.77,45.45747798]
[1731526752817,45.45747798,212.8,212.58,13.2999]
[1731526753021,0.1,212.78,212.53,0.2453449]
[1731526753225,45.45747798,212.73,212.53,0.2453449]
[1731526753453,160.5,212.83,212.54,0.2]
[1731526753625,4.6984,212.84,212.59,0.1]
[1731526753939,0.12549,212.81,212.54,0.1]
[1731526754121,0.1,212.78,212.53,0.2453449]
[1731526754448,45.45747798,212.77,212.68,45.45747798]
[1731526754621,45.45747798,212.79,212.7,45.45747798]
[1731526754819,160.5,212.8,212.72,45.45747798]
[1731526755018,45.45747798,212.78,212.68,45.45747798]
[1731526755225,0.12549,212.75,212.68,45.45747798]
[1731526755442,0.12549,212.73,212.64,45.45747798]
[1731526755642,45.45747798,212.78,212.68,45.45747798]
[1731526755833,0.12549,212.71,212.63,45.45747798]
[1731526756031,16.4466,212.81,212.65,45.45747798]
[1731526756032,45.45747798,212.74,212.65,45.45747798]
[1731526756242,45.45747798,212.8,212.69,45.45747798]
[1731526756443,45.45747798,212.8,212.72,45.45747798]
[1731526756635,0.12549,212.75,212.66,45.45747798]
[1731526756840,45.45747798,212.78,212.7,45.45747798]
[1731526757024,45.45747798,212.8,212.72,45.45747798]
[1731526757227,160.5,212.86,212.72,45.45747798]
[1731526757425,0.12549,212.75,212.57,0.1]
[1731526757623,0.12549,212.75,212.66,45.45747798]
[1731526757941,0.12549,212.67,212.6,45.45747798]
[1731526758243,45.45747798,212.72,212.62,45.45747798]
[1731526758432,45.45747798,212.76,212.66,45.45747798]
[1731526758629,0.1,212.81,212.53,0.2453449]
[1731526758936,45.45747798,212.74,212.64,45.45747798]
[1731526759128,45.45747798,212.72,212.62,45.45747798]
[1731526759328,0.12549,212.71,212.53,0.2453449]
[1731526759540,39.9378,212.83,212.53,0.2453449]
[1731526759541,45.45747798,212.77,212.68,45.45747798]
[1731526759846,4.6985,212.83,212.53,0.2453449]
[1731526759847,45.45747798,212.7,212.53,0.2453449]
[1731526760057,0.12549,212.63,212.54,45.45747798]
[1731526760343,0.12549,212.61,212.54,45.45747798]
[1731526760544,0.12549,212.61,212.54,50.16237798]
[1731526760745,0.12549,212.61,212.53,4.9504449]
[1731526760746,0.12549,212.59,212.53,4.9504449]
[1731526760928,45.45747798,212.59,212.53,4.9505449]
[1731526761125,45.45747798,212.6,212.53,12.0083449]
[1731526761345,0.12549,212.59,212.53,12.0083449]
[1731526761537,0.12549,212.59,212.51,50.16297798]
[1731526761538,0.1,212.46,212.17,0.1]
[1731526761845,45.45747798,212.32,212.15,45.45747798]
[1731526762037,45.45747798,212.32,212.13,45.45747798]
[1731526762233,20.0,212.31,212.1,0.4361686]
[1731526762540,11.5727,212.35,212.13,0.1]
[1731526762747,4.7086,212.38,212.13,0.1]
[1731526763051,160.5,212.44,212.2,0.1]
[1731526763232,23.776884,212.53,212.24,0.1]
[1731526763429,23.776884,212.53,212.17,12.1433]
[1731526763430,4.7052,212.53,212.29,0.1]
[1731526763745,0.1,212.6,212.17,12.1433]
[1731526763746,1.881979,212.59,212.46,45.45747798]
[1731526764046,43.8629,212.7,212.41,45.45747798]
[1731526764047,45.45747798,212.62,212.5,45.45747798]
[1731526764347,45.45747798,212.65,212.47,0.1]
[1731526764525,4.701,212.72,212.57,45.45747798]
[1731526764526,45.45747798,212.68,212.57,45.45747798]
[1731526764732,45.45747798,212.72,212.61,45.45747798]
[1731526764930,179.302181,212.81,212.53,0.1]
[1731526764931,45.45747798,212.7,212.59,45.45747798]
[1731526765333,45.45747798,212.68,212.57,45.45747798]
[1731526765844,0.12549,212.59,212.38,0.1]
[1731526766180,0.12549,212.59,212.44,45.45747798]
[1731526766181,45.45747798,212.54,212.44,45.45747798]
[1731526766359,45.45747798,212.54,212.21,23.67516261]
[1731526766360,12.93189,212.49,212.18,0.1]
[1731526766532,12.93189,212.49,211.97,0.1]
[1731526766533,20.22549,212.27,211.97,0.1]
[1731526766848,45.45747798,212.11,211.97,0.1]
[1731526767027,90.91495596,212.11,211.92,3.07702847]
[1731526767225,160.5,212.21,211.97,45.45747798]
[1731526767442,45.45747798,212.11,211.97,45.45747798]
[1731526767640,45.45747798,212.11,211.89,0.4361686]
[1731526767845,45.58296798,212.11,211.91,0.1]
[1731526768049,45.58296798,212.11,211.97,45.45747798]
[1731526768231,45.58296798,212.11,211.99,45.45747798]
[1731526768438,45.45747798,212.11,212.01,45.45747798]
[1731526768631,45.45747798,212.11,211.99,45.45747798]
[1731526768858,45.58296798,212.11,211.94,45.45747798]
[1731526769047,0.12549,212.1,211.96,11.7941]
[1731526769238,0.12549,212.1,211.89,0.4361686]
[1731526769239,45.45747798,211.97,211.89,16.9535686]
[1731526769438,45.45747798,211.94,211.89,16.9535686]
[1731526769743,45.45747798,211.96,211.89,16.9535686]
[1731526770363,45.45747798,211.98,211.89,16.9535686]
[1731526770545,45.45747798,212.0,211.9,45.45747798]
[1731526770740,0.1,212.09,211.89,16.9535686]
[1731526770741,45.45747798,212.04,211.94,45.45747798]
[1731526770946,45.45747798,211.99,211.89,16.9535686]
[1731526771565,4.7154,212.07,211.89,16.9535686]
[1731526771566,45.45747798,211.97,211.89,16.9535686]
[1731526771858,45.45747798,211.99,211.9,45.45747798]
[1731526772073,45.45747798,211.98,211.89,16.9535686]
[1731526772765,45.45747798,212.04,211.89,16.9535686]
[1731526773066,160.5,212.18,211.96,45.45747798]
[1731526773067,45.45747798,212.07,211.96,45.45747798]
[1731526773247,45.45747798,212.11,212.0,45.45747798]
[1731526773445,45.45747798,212.11,211.9,0.1]
[1731526773446,45.45747798,212.07,211.96,45.45747798]
[1731526773646,45.45747798,212.09,211.98,45.45747798]
[1731526773975,45.45747798,212.13,212.03,45.45747798]
[1731526774181,0.12549,212.04,211.95,45.45747798]
[1731526774346,0.12549,212.04,211.9,23.776884]
[1731526774347,45.45747798,212.06,211.96,45.45747798]
[1731526774662,4.8132,212.17,211.89,40.5506686]
[1731526774663,0.12549,212.03,211.95,11.7947]
[1731526774969,4.7158,212.05,211.89,5.1553686]
[1731526775145,0.12549,212.04,211.89,16.9538686]
[1731526775766,0.12549,212.04,211.95,45.45747798]
[1731526775950,45.45747798,212.05,211.93,45.45747798]
[1731526776149,45.45747798,212.03,211.91,45.45747798]
[1731526776345,0.12549,212.0,211.91,45.45747798]
[1731526776872,0.12549,211.96,211.89,0.4361686]
[1731526777174,0.12549,211.9,211.89,0.4361686]
[1731526777374,0.12549,211.9,211.76,45.45747798]
[1731526777546,45.45747798,211.87,211.77,4.7221]
[1731526777747,45.45747798,211.87,211.78,45.45747798]
[1731526777954,45.45747798,211.89,211.78,45.45747798]
[1731526778265,0.12549,211.86,211.78,45.45747798]
[1731526778680,45.45747798,211.91,211.8,45.45747798]
[1731526778968,45.45747798,211.97,211.86,45.45747798]
[1731526779272,50.17527798,211.97,211.86,45.45747798]
[1731526779568,0.1,212.05,211.86,45.45747798]
[1731526779569,160.5,212.07,211.91,45.45747798]
[1731526779748,45.45747798,212.01,211.89,45.45747798]
[1731526780248,45.45747798,211.99,211.88,45.45747798]
[1731526780583,4.7161,212.04,211.95,45.45747798]
[1731526780946,45.45747798,211.99,211.9,45.45747798]
[1731526781282,0.12549,211.98,211.88,45.45747798]
[1731526781774,0.12549,211.89,211.77,45.45747798]
[1731526782073,0.12549,211.82,211.76,11.8052]
[1731526782759,0.12549,211.84,211.77,45.45747798]
[1731526783071,0.12549,211.84,211.76,11.8052]